fUSD/lending_fUSD_20241223
["ID","MTS","AMOUNT","RATE_DAILY","PERIOD"]
[346399765,1734940254004,-500.0,0.00019726,2]
[346399768,1734940254014,-500.0,0.00019726,2]
[346399770,1734940254025,-500.0,0.00019726,2]
[346399772,1734940254034,-500.0,0.00019726,2]
[346399774,1734940254043,-539.26,0.00019726,2]
[346399775,1734940254052,-500.0,0.00019726,2]
[346399777,1734940254060,-500.0,0.00019726,2]
[346399779,1734940254069,-500.0,0.00019726,2]
[346399781,1734940254078,-500.0,0.00019726,2]
[346399783,1734940254088,-500.0,0.00019726,2]
[346399785,1734940254097,-688.87,0.00019726,2]
[346399787,1734940254106,-513.25618304,0.00019726,2]
[346399789,1734940254116,-500.0,0.00019726,2]
[346399791,1734940254125,-500.0,0.00019726,2]
[346399793,1734940254134,-500.0,0.00019726,2]
[346399795,1734940254144,-500.0,0.00019726,2]
[346399797,1734940254153,-500.0,0.00019726,2]
[346399799,1734940254162,-500.0,0.00019726,2]
[346399801,1734940254171,-500.0,0.00019726,2]
[346399803,1734940254180,-1492.191648,0.00019726,2]
[346399805,1734940254190,-500.0,0.00019726,2]
[346399807,1734940254199,-500.0,0.00019726,2]
[346399809,1734940254209,-1207.441262,0.00019726,2]
[346399811,1734940254218,-500.0,0.00019726,2]
[346399813,1734940254227,-1014.37,0.00019726,2]
[346399815,1734940254237,-500.0,0.00019726,2]
[346399817,1734940254246,-500.0,0.00019726,2]
[346399819,1734940254255,-500.0,0.00019726,2]
[346399821,1734940254264,-500.0,0.00019726,2]
[346399823,1734940254273,-500.0,0.00019726,2]
[346399825,1734940254282,-500.0,0.00019726,2]
[346399827,1734940254292,-500.0,0.00019726,2]
[346399829,1734940254301,-956.1,0.00019726,2]
[346399831,1734940254310,-979.56,0.00019726,2]
[346399833,1734940254319,-500.0,0.00019726,2]
[346399835,1734940254329,-507.79981499,0.00019726,2]
[346399837,1734940254339,-500.0,0.00019726,2]
[346399839,1734940254350,-500.0,0.00019726,2]
[346399841,1734940254359,-500.0,0.00019726,2]
[346399843,1734940254368,-500.0,0.00019726,2]
[346399845,1734940254377,-700.61,0.00019726,2]
[346399847,1734940254386,-500.0,0.00019726,2]
[346399849,1734940254395,-500.0,0.00019726,2]
[346399851,1734940254404,-656.35,0.00019726,2]
[346399853,1734940254413,-500.0,0.00019726,2]
[346399855,1734940254423,-500.0,0.00019726,2]
[346399857,1734940254434,-500.0,0.00019726,2]
[346399859,1734940254443,-500.0,0.00019726,2]
[346399861,1734940254452,-500.0,0.00019726,2]
[346399863,1734940254461,-500.0,0.00019726,2]
[346399865,1734940254470,-500.0,0.00019726,2]
[346399867,1734940254479,-986.62,0.00019726,2]
[346399869,1734940254488,-500.0,0.00019726,2]
[346399871,1734940254497,-742.71,0.00019726,2]
[346399873,1734940254506,-543.99643608,0.00019726,2]
[346399875,1734940254515,-604.70560105,0.00019726,2]
[346399877,1734940254525,-223.55268802,0.00019726,2]
[346399879,1734940254534,-500.0,0.00019726,2]
[346399881,1734940254544,-1036.55,0.00019726,2]
[346399883,1734940254553,-500.0,0.00019726,2]
[346399885,1734940254562,-262.37289936,0.00019726,2]
[346399887,1734940254571,-598.9,0.00019726,2]
[346399889,1734940254580,-518.68252005,0.00019726,2]
[346399891,1734940254588,-1241.27,0.00019726,2]
[346399892,1734940254598,-500.0,0.00019726,2]
[346399894,1734940254607,-500.0,0.00019726,2]
[346399896,1734940254616,-500.0,0.00019726,2]
[346399898,1734940254626,-500.0,0.00019726,2]
[346399900,1734940254634,-500.0,0.00019726,2]
[346399902,1734940254643,-500.0,0.00019726,2]
[346399904,1734940254653,-506.08,0.00019726,2]
[346399906,1734940254662,-1041.44,0.00019726,2]
[346399908,1734940254671,-500.0,0.00019726,2]
[346399910,1734940254681,-500.0,0.00019726,2]
[346399912,1734940254690,-500.0,0.00019726,2]
[346399914,1734940254699,-500.0,0.00019726,2]
[346399916,1734940254708,-500.0,0.00019726,2]
[346399918,1734940254718,-500.0,0.00019726,2]
[346399920,1734940254727,-500.0,0.00019726,2]
[346399922,1734940254736,-563.73214078,0.00019726,2]
[346399925,1734940254745,-507.9,0.00019726,2]
[346399926,1734940254754,-500.0,0.00019726,2]
[346399929,1734940254764,-500.0,0.00019726,2]
[346399930,1734940254774,-500.0,0.00019726,2]
[346399932,1734940254783,-500.0,0.00019726,2]
[346399934,1734940254792,-500.0,0.00019726,2]
[346399936,1734940254801,-591.85863353,0.00019726,2]
[346399938,1734940254810,-506.78947005,0.00019726,2]
[346399940,1734940254819,-500.0,0.00019726,2]
[346399942,1734940254828,-500.0,0.00019726,2]
[346399944,1734940254838,-500.0,0.00019726,2]
[346399946,1734940254847,-727.89,0.00019726,2]
[346399948,1734940254856,-500.0,0.00019726,2]
[346399950,1734940254865,-500.0,0.00019726,2]
[346399952,1734940254874,-500.0,0.00019726,2]
[346399954,1734940254883,-1853.57,0.00019726,2]
[346399956,1734940254892,-500.0,0.00019726,2]
[346399958,1734940254901,-900.57,0.00019726,2]
[346399960,1734940254911,-500.0,0.00019726,2]
[346399962,1734940254920,-17292.04,0.00019726,2]
[346399964,1734940254929,-500.0,0.00019726,2]
[346399966,1734940254938,-506.45297607,0.00019726,2]
[346399968,1734940254947,-1077.2,0.00019726,2]
[346399970,1734940254956,-500.0,0.00019726,2]
[346399972,1734940254967,-970.31,0.00019726,2]
[346399974,1734940254976,-500.0,0.00019726,2]
[346399976,1734940254986,-500.0,0.00019726,2]
[346399979,1734940254995,-669.79,0.00019726,2]
[346399980,1734940255005,-1108.65,0.00019726,2]
[346399982,1734940255014,-736.88,0.00019726,2]
[346399984,1734940255024,-500.0,0.00019726,2]
[346399986,1734940255034,-786.14,0.00019726,2]
[346399989,1734940255043,-500.0,0.00019726,2]
[346399991,1734940255052,-1699.95,0.00019726,2]
[346399992,1734940255062,-500.0,0.00019726,2]
[346399995,1734940255071,-500.0,0.00019726,2]
[346399996,1734940255080,-9367.55,0.00019726,2]
[346399998,1734940255089,-500.0,0.00019726,2]
[346400000,1734940255098,-500.0,0.00019726,2]
[346400002,1734940255107,-500.0,0.00019726,2]
[346400004,1734940255116,-500.0,0.00019726,2]
[346400006,1734940255125,-1104.51,0.00019726,2]
[346400009,1734940255135,-500.0,0.00019726,2]
[346400010,1734940255144,-1174.4,0.00019726,2]
[346400013,1734940255153,-500.0,0.00019726,2]
[346400014,1734940255163,-500.0,0.00019726,2]
[346400016,1734940255172,-945.65,0.00019726,2]
[346400019,1734940255182,-500.0,0.00019726,2]
[346400021,1734940255191,-1820.36,0.00019726,2]
[346400023,1734940255200,-1917.83,0.00019726,2]
[346400025,1734940255210,-1349.28,0.00019726,2]
[346400027,1734940255219,-500.0,0.00019726,2]
[346400028,1734940255228,-3977.3,0.00019726,2]
[346400030,1734940255238,-500.0,0.00019726,2]
[346400032,1734940255247,-500.0,0.00019726,2]
[346400034,1734940255256,-500.0,0.00019726,2]
[346400036,1734940255265,-500.0,0.00019726,2]
[346400038,1734940255275,-500.0,0.00019726,2]
[346400040,1734940255284,-500.0,0.00019726,2]
[346400042,1734940255294,-1221.1,0.00019726,2]
[346400044,1734940255303,-500.0,0.00019726,2]
[346400046,1734940255312,-509.85431374,0.00019726,2]
[346400048,1734940255321,-500.0,0.00019726,2]
[346400050,1734940255330,-500.0,0.00019726,2]
[346400052,1734940255341,-500.0,0.00019726,2]
[346400054,1734940255351,-500.0,0.00019726,2]
[346400056,1734940255360,-500.0,0.00019726,2]
[346400058,1734940255369,-849.57,0.00019726,2]
[346400060,1734940255379,-500.0,0.00019726,2]
[346400062,1734940255389,-500.0,0.00019726,2]
[346400064,1734940255398,-500.0,0.00019726,2]
[346400066,1734940255407,-500.0,0.00019726,2]
[346400068,1734940255417,-500.0,0.00019726,2]
[346400070,1734940255426,-1298.38,0.00019726,2]
[346400072,1734940255435,-500.0,0.00019726,2]
[346400074,1734940255444,-4147.11,0.00019726,2]
[346400076,1734940255453,-500.0,0.00019726,2]
[346400078,1734940255461,-796.41,0.00019726,2]
[346400095,1734940255611,-1300.2,0.00019726,2]
[346400097,1734940255620,-862.14,0.00019726,2]
[346400099,1734940255630,-505.41741418,0.00019726,2]
[346400101,1734940255639,-1051.07,0.00019726,2]
[346400103,1734940255649,-500.0,0.00019726,2]
[346400105,1734940255658,-911.18,0.00019726,2]
[346400107,1734940255668,-842.27,0.00019726,2]
[346400109,1734940255677,-683.41,0.00019726,2]
[346400111,1734940255686,-500.0,0.00019726,2]
[346400113,1734940255696,-500.0,0.00019726,2]
[346400115,1734940255705,-500.0,0.00019726,2]
[346400117,1734940255714,-500.0,0.00019726,2]
[346400119,1734940255723,-1931.51,0.00019726,2]
[346400121,1734940255732,-573.89,0.00019726,2]
[346400123,1734940255741,-500.0,0.00019726,2]
[346400125,1734940255750,-500.0,0.00019726,2]
[346400127,1734940255760,-500.0,0.00019726,2]
[346400129,1734940255769,-500.0,0.00019726,2]
[346400131,1734940255780,-500.0,0.00019726,2]
[346400132,1734940255789,-521.83,0.00019726,2]
[346400135,1734940255798,-500.0,0.00019726,2]
[346400137,1734940255808,-1841.22,0.00019726,2]
[346400138,1734940255818,-898.31,0.00019726,2]
[346400139,1734940255827,-2051.97,0.00019726,2]
[346400140,1734940255836,-500.0,0.00019726,2]
[346400141,1734940255845,-640.87,0.00019726,2]
[346400142,1734940255855,-500.0,0.00019726,2]
[346400143,1734940255864,-727.99,0.00019726,2]
[346400144,1734940255874,-500.0,0.00019726,2]
[346400145,1734940255883,-1426.15,0.00019726,2]
[346400146,1734940255893,-1358.09,0.00019726,2]
[346400147,1734940255902,-500.0,0.00019726,2]
[346400148,1734940255912,-500.0,0.00019726,2]
[346400149,1734940255921,-2805.36,0.00019726,2]
[346400151,1734940255931,-500.0,0.00019726,2]
[346400153,1734940255940,-560.98068734,0.00019726,2]
[346400155,1734940255950,-1309.66,0.00019726,2]
[346400157,1734940255959,-500.0,0.00019726,2]
[346400159,1734940255969,-500.0,0.00019726,2]
[346400161,1734940255978,-1296.75,0.00019726,2]
[346400163,1734940255988,-9921.71,0.00019726,2]
[346400165,1734940255998,-995.79,0.00019726,2]
[346400167,1734940256007,-500.0,0.00019726,2]
[346400169,1734940256017,-1106.64,0.00019726,2]
[346400171,1734940256028,-991.88,0.00019726,2]
[346400173,1734940256037,-500.0,0.00019726,2]
[346400175,1734940256046,-1025.59,0.00019726,2]
[346400177,1734940256056,-2224.42,0.00019726,2]
[346400179,1734940256065,-2036.24,0.00019726,2]
[346400181,1734940256074,-500.0,0.00019726,2]
[346400183,1734940256083,-12977.05,0.00019726,2]
[346400185,1734940256093,-806.27,0.00019726,2]
[346400187,1734940256102,-500.0,0.00019726,2]
[346400189,1734940256111,-3510.63,0.00019726,2]
[346400191,1734940256120,-500.0,0.00019726,2]
[346400193,1734940256130,-3263.6,0.00019726,2]
[346400195,1734940256139,-1580.43,0.00019726,2]
[346400197,1734940256148,-1743.4,0.00019726,2]
[346400199,1734940256158,-500.0,0.00019726,2]
[346400201,1734940256167,-1143.14,0.00019726,2]
[346400203,1734940256176,-500.0,0.00019726,2]
[346400205,1734940256185,-165.78866941,0.00019726,2]
[346400207,1734940256194,-500.0,0.00019726,2]
[346400209,1734940256203,-1121.5,0.00019726,2]
[346400211,1734940256212,-1782.74,0.00019726,2]
[346400213,1734940256221,-500.0,0.00019726,2]
[346400215,1734940256230,-1155.38,0.00019726,2]
[346400217,1734940256239,-1193.96,0.00019726,2]
[346400219,1734940256248,-500.0,0.00019726,2]
[346400221,1734940256257,-500.0,0.00019726,2]
[346400223,1734940256266,-1562.41,0.00019726,2]
[346400225,1734940256275,-500.0,0.00019726,2]
[346400227,1734940256285,-2544.11,0.00019726,2]
[346400229,1734940256294,-500.0,0.00019726,2]
[346400231,1734940256303,-2306.46,0.00019726,2]
[346400233,1734940256312,-1634.45,0.00019726,2]
[346400235,1734940256321,-500.0,0.00019726,2]
[346400237,1734940256330,-768.11,0.00019726,2]
[346400240,1734940256340,-500.0,0.00019726,2]
[346400241,1734940256351,-2860.24,0.00019726,2]
[346400244,1734940256361,-1225.55,0.00019726,2]
[346400246,1734940256370,-500.0,0.00019726,2]
[346400247,1734940256379,-500.0,0.00019726,2]
[346400249,1734940256388,-840.17,0.00019726,2]
[346400251,1734940256397,-560.61,0.00019726,2]
[346400253,1734940256409,-1623.85,0.00019726,2]
[346400255,1734940256418,-500.0,0.00019726,2]
[346400258,1734940256427,-1630.88,0.00019726,2]
[346400259,1734940256436,-500.0,0.00019726,2]
[346400261,1734940256445,-500.0,0.00019726,2]
[346400263,1734940256454,-742.64,0.00019726,2]
[346400265,1734940256463,-500.0,0.00019726,2]
[346400267,1734940256472,-500.0,0.00019726,2]
[346400269,1734940256481,-1784.46,0.00019726,2]
[346400271,1734940256490,-500.0,0.00019726,2]
[346400273,1734940256499,-500.0,0.00019726,2]
[346400275,1734940256508,-500.0,0.00019726,2]
[346400277,1734940256517,-803.32,0.00019726,2]
[346400279,1734940256527,-500.0,0.00019726,2]
[346400281,1734940256536,-4733.43,0.00019726,2]
[346400284,1734940256547,-500.0,0.00019726,2]
[346400286,1734940256556,-2715.78,0.00019726,2]
[346400288,1734940256565,-500.0,0.00019726,2]
[346400290,1734940256575,-9146.3,0.00019726,2]
[346400292,1734940256584,-2904.54,0.00019726,2]
[346400294,1734940256593,-3294.02,0.00019726,2]
[346400296,1734940256602,-3041.59,0.00019726,2]
[346400298,1734940256611,-500.0,0.00019726,2]
[346400299,1734940256620,-2019.79,0.00019726,2]
[346400302,1734940256629,-500.0,0.00019726,2]
[346400303,1734940256638,-500.0,0.00019726,2]
[346400305,1734940256647,-3861.43,0.00019726,2]
[346400307,1734940256657,-1092.77,0.00019726,2]
[346400309,1734940256666,-1712.47,0.00019726,2]
[346400311,1734940256675,-500.0,0.00019726,2]
[346400313,1734940256684,-500.0,0.00019726,2]
[346400315,1734940256693,-1989.28,0.00019726,2]
[346400317,1734940256702,-500.0,0.00019726,2]
[346400319,1734940256711,-500.0,0.00019726,2]
[346400321,1734940256720,-28687.14,0.00019726,2]
[346400323,1734940256729,-500.0,0.00019726,2]
[346400325,1734940256738,-1359.63,0.00019726,2]
[346400327,1734940256748,-3366.26,0.00019726,2]
[346400329,1734940256757,-666.27,0.00019726,2]
[346400331,1734940256765,-500.0,0.00019726,2]
[346400333,1734940256775,-6677.79,0.00019726,2]
[346400335,1734940256784,-7468.01,0.00019726,2]
[346400337,1734940256793,-604.98,0.00019726,2]
[346400339,1734940256803,-500.0,0.00019726,2]
[346400341,1734940256812,-1299.82,0.00019726,2]
[346400343,1734940256821,-2671.39,0.00019726,2]
[346400345,1734940256830,-4448.82,0.00019726,2]
[346400347,1734940256839,-4190.14,0.00019726,2]
[346400349,1734940256848,-2445.82,0.00019726,2]
[346400351,1734940256858,-500.0,0.00019726,2]
[346400353,1734940256867,-582.28,0.00019726,2]
[346400355,1734940256876,-500.0,0.00019726,2]
[346400357,1734940256885,-519.92,0.00019726,2]
[346400359,1734940256895,-2016.79,0.00019726,2]
[346400361,1734940256904,-537.5,0.00019726,2]
[346400363,1734940256913,-2226.17,0.00019726,2]
[346400365,1734940256922,-2236.68,0.00019726,2]
[346400367,1734940256931,-1286.33,0.00019726,2]
[346400369,1734940256940,-500.0,0.00019726,2]
[346400371,1734940256950,-4382.06,0.00019726,2]
[346400373,1734940256959,-500.0,0.00019726,2]
[346400375,1734940256968,-576.62,0.00019726,2]
[346400377,1734940256977,-1920.18,0.00019726,2]
[346400379,1734940256987,-1085.87,0.00019726,2]
[346400381,1734940256996,-1210.25,0.00019726,2]
[346400383,1734940257005,-2910.72,0.00019726,2]
[346400385,1734940257015,-500.0,0.00019726,2]
[346400387,1734940257024,-2010.98,0.00019726,2]
[346400389,1734940257034,-1100.63,0.00019726,2]
[346400391,1734940257043,-500.0,0.00019726,2]
[346400393,1734940257053,-971.16,0.00019726,2]
[346400395,1734940257062,-500.0,0.00019726,2]
[346400397,1734940257072,-817.56,0.00019726,2]
[346400399,1734940257081,-8457.91,0.00019726,2]
[346400401,1734940257090,-500.0,0.00019726,2]
[346400403,1734940257100,-504.12720034,0.00019726,2]
[346400405,1734940257108,-500.0,0.00019726,2]
[346400407,1734940257118,-8288.01,0.00019726,2]
[346400409,1734940257127,-937.65,0.00019726,2]
[346400411,1734940257136,-500.0,0.00019726,2]
[346400413,1734940257145,-500.0,0.00019726,2]
[346400415,1734940257155,-500.0,0.00019726,2]
[346400417,1734940257164,-2968.07,0.00019726,2]
[346400419,1734940257173,-500.0,0.00019726,2]
[346400421,1734940257182,-1653.9,0.00019726,2]
[346400423,1734940257191,-500.0,0.00019726,2]
[346400425,1734940257201,-750.26,0.00019726,2]
[346400427,1734940257210,-1002.92,0.00019726,2]
[346400429,1734940257220,-936.4,0.00019726,2]
[346400431,1734940257229,-1032.55,0.00019726,2]
[346400433,1734940257238,-827.46,0.00019726,2]
[346400435,1734940257247,-1599.16,0.00019726,2]
[346400437,1734940257256,-500.0,0.00019726,2]
[346400439,1734940257265,-3807.57,0.00019726,2]
[346400441,1734940257274,-2835.86,0.00019726,2]
[346400443,1734940257283,-436.35,0.00019726,2]
[346400445,1734940257292,-365.19,0.00019726,2]
[346400447,1734940257301,-151.16,0.00019726,2]
[346400449,1734940257310,-436.35,0.00019726,2]
[346400451,1734940257319,-365.19,0.00019726,2]
[346400453,1734940257328,-150.0,0.00019726,2]
[346400455,1734940257337,-365.19,0.00019726,2]
[346400457,1734940257350,-365.19,0.00019726,2]
[346400459,1734940257359,-150.0,0.00019726,2]
[346400461,1734940257368,-365.19,0.00019726,2]
[346400463,1734940257377,-729.12,0.00019726,2]
[346400465,1734940257387,-150.0,0.00019726,2]
[346400467,1734940257396,-203.98,0.00019726,2]
[346400469,1734940257405,-150.0,0.00019732,2]
[346400471,1734940257414,-150.0,0.00019734,2]
[346400473,1734940257423,-153.68080552,0.00019736,2]
[346400475,1734940257432,-2011.0,0.00019743,2]
[346400477,1734940257442,-1285.637,0.00019743,2]
[346400479,1734940257451,-633.0,0.00019743,2]
[346400480,1734940257460,-255.736,0.00019743,2]
[346400482,1734940257469,-586.384,0.00019743,2]
[346400484,1734940257478,-1899.0,0.00019743,2]
[346400486,1734940257488,-834.0,0.00019743,2]
[346400488,1734940257496,-1256.0,0.00019743,2]
[346400490,1734940257505,-3770.0,0.00019743,2]
[346400492,1734940257515,-996.637,0.00019743,2]
[346400494,1734940257525,-3682.0,0.00019743,2]
[346400496,1734940257534,-536.0,0.00019743,2]
[346400498,1734940257543,-1170.0,0.00019743,2]
[346400500,1734940257552,-3887.0,0.00019743,2]
[346400502,1734940257561,-150.0,0.00019743,2]
[346400504,1734940257570,-9592.0,0.00019743,2]
[346400506,1734940257579,-250.0,0.00019743,2]
[346400508,1734940257588,-150.0,0.00019748,2]
[346400510,1734940257598,-150.0,0.00019748,2]
[346400512,1734940257607,-208.0,0.0001975,2]
[346400514,1734940257616,-209.0,0.0001975,2]
[346400516,1734940257625,-841.03525344,0.0001975,2]
[346400518,1734940257634,-150.0,0.0001975,2]
[346400520,1734940257643,-150.0,0.00019751,2]
[346400522,1734940257653,-150.0,0.00019757,2]
[346400524,1734940257663,-150.0,0.00019757,2]
[346400526,1734940257672,-150.0,0.00019761,2]
[346400528,1734940257681,-150.0,0.00019762,2]
[346400530,1734940257690,-150.0,0.00019776,2]
[346400532,1734940257699,-150.0,0.00019778,4]
[346400534,1734940257708,-150.0,0.00019781,2]
[346400536,1734940257716,-150.0,0.00019784,2]
[346400538,1734940257725,-150.0,0.00019786,2]
[346400540,1734940257734,-150.0,0.00019787,2]
[346400542,1734940257743,-150.0,0.00019788,2]
[346400544,1734940257752,-150.0,0.00019789,2]
[346400546,1734940257761,-150.0,0.0001979,2]
[346400548,1734940257771,-150.0,0.00019795,2]
[346400550,1734940257781,-150.0,0.00019799,2]
[346400552,1734940257790,-151.0,0.000198,2]
[346400554,1734940257799,-151.0,0.000198,2]
[346400556,1734940257808,-151.0,0.000198,2]
[346400558,1734940257817,-151.0,0.000198,2]
[346400560,1734940257826,-635.766619,0.000198,2]
[346400562,1734940257835,-635.766619,0.000198,2]
[346400564,1734940257843,-635.766619,0.000198,2]
[346400566,1734940257852,-635.766619,0.000198,2]
[346400568,1734940257862,-151.0,0.000198,2]
[346400570,1734940257870,-151.0,0.000198,2]
[346400572,1734940257880,-151.0,0.000198,2]
[346400574,1734940257889,-153.003443,0.000198,2]
[346400575,1734940257898,-275.0,0.000198,4]
[346400577,1734940257907,-275.0,0.000198,7]
[346400579,1734940257916,-841.03525344,0.000198,2]
[346400581,1734940257925,-150.0,0.000198,4]
[346400583,1734940257934,-1000.0,0.000198,2]
[346400585,1734940257944,-150.0,0.00019806,2]
[346400588,1734940257953,-150.0,0.00019806,2]
[346400590,1734940257963,-246.59644465,0.00019806,2]
[346400591,1734940257972,-150.0,0.00019808,2]
[346400593,1734940257982,-1500.0,0.00019808,2]
[346400596,1734940257991,-171.96652561,0.00019808,2]
[346400597,1734940258001,-7398.342031,0.00019809,2]
[346400599,1734940258010,-8509.41724508,0.00019809,2]
[346400601,1734940258019,-26093.75704958,0.0001981,2]
[346400603,1734940258029,-150.0,0.00019813,2]
[346400605,1734940258038,-150.0,0.00019814,2]
[346400608,1734940258047,-150.0,0.00019829,2]
[346400610,1734940258057,-151.33,0.00019829,2]
[346400612,1734940258066,-150.0,0.00019831,2]
[346400614,1734940258075,-5800.0,0.00019832,2]
[346400616,1734940258084,-5671.487,0.00019836,2]
[346400617,1734940258093,-238.222,0.00019836,2]
[346400619,1734940258102,-500.0,0.00019836,2]
[346400621,1734940258111,-500.0,0.00019839,2]
[346400623,1734940258120,-500.0,0.00019839,2]
[346400625,1734940258129,-500.0,0.0001984,2]
[346400627,1734940258138,-500.0,0.0001984,2]
[346400629,1734940258147,-2000.0,0.0001984,2]
[346400631,1734940258156,-500.0,0.0001984,2]
[346400633,1734940258166,-500.0,0.0001984,2]
[346400635,1734940258174,-500.0,0.0001984,2]
[346400637,1734940258183,-500.0,0.0001984,2]
[346400639,1734940258192,-200.0,0.0001984,2]
[346400641,1734940258201,-5800.0,0.00019841,2]
[346400643,1734940258210,-150.0,0.00019841,2]
[346400654,1734940258358,-150.0,0.00019841,2]
[346400655,1734940258368,-150.0,0.00019842,2]
[346400656,1734940258378,-5800.0,0.00019849,2]
[346400657,1734940258387,-841.03525344,0.0001985,2]
[346400658,1734940258396,-150.0,0.00019857,2]
[346400659,1734940258405,-150.0,0.00019857,2]
[346400661,1734940258415,-5800.0,0.00019858,2]
[346400663,1734940258424,-150.0,0.00019861,2]
[346400665,1734940258434,-150.0,0.00019864,2]
[346400667,1734940258444,-150.0,0.00019865,2]
[346400669,1734940258453,-5800.0,0.00019866,2]
[346400671,1734940258462,-150.0,0.00019867,2]
[346400673,1734940258472,-150.0,0.00019872,2]
[346400675,1734940258482,-5800.0,0.00019875,2]
[346400677,1734940258491,-150.0,0.00019876,2]
[346400679,1734940258500,-150.0,0.00019879,2]
[346400681,1734940258509,-150.0,0.00019882,2]
[346400683,1734940258519,-150.0,0.00019882,2]
[346400685,1734940258529,-150.0,0.00019883,2]
[346400687,1734940258538,-5800.0,0.00019883,2]
[346400689,1734940258547,-150.0,0.00019884,2]
[346400691,1734940258556,-150.0,0.00019884,2]
[346400693,1734940258566,-150.0,0.00019885,2]
[346400695,1734940258575,-150.0,0.00019888,2]
[346400697,1734940258584,-5800.0,0.00019892,2]
[346400699,1734940258596,-150.0,0.00019898,2]
[346400702,1734940258606,-151.0,0.000199,2]
[346400704,1734940258615,-151.0,0.000199,2]
[346400706,1734940258624,-635.766619,0.000199,2]
[346400707,1734940258634,-422.6,0.000199,2]
[346400709,1734940258643,-635.766619,0.000199,2]
[346400711,1734940258652,-151.0,0.000199,2]
[346400713,1734940258661,-27708.5115,0.000199,2]
[346400715,1734940258670,-220.0,0.000199,2]
[346400717,1734940258679,-3869.02431974,0.000199,2]
[346400719,1734940258688,-841.03525344,0.000199,2]
[346400721,1734940258697,-150.0,0.000199,4]
[346400723,1734940258706,-1000.0,0.000199,2]
[346400725,1734940258716,-192.05111782,0.000199,2]
[346400727,1734940258725,-158.50444537,0.000199,2]
[346400729,1734940258734,-5800.0,0.000199,2]
[346400731,1734940258743,-1000.0,0.000199,2]
[346400733,1734940258753,-7398.342031,0.000199,2]
[346400736,1734940258763,-226.85653754,0.000199,2]
[346400738,1734940258772,-162.92212336,0.000199,2]
[346400740,1734940258783,-8509.41724508,0.000199,2]
[346400742,1734940258792,-407.56317786,0.000199,2]
[346400744,1734940258801,-407.56317786,0.000199,2]
[346400745,1734940258810,-407.56317786,0.000199,2]
[346400747,1734940258820,-407.56317786,0.000199,2]
[346400750,1734940258829,-407.56317786,0.000199,2]
[346400752,1734940258839,-407.56317786,0.000199,2]
[346400754,1734940258848,-407.56317786,0.000199,2]
[346400756,1734940258858,-407.56317786,0.000199,2]
[346400757,1734940258867,-407.56317786,0.000199,2]
[346400759,1734940258877,-407.56317786,0.000199,2]
[346400761,1734940258886,-407.56317786,0.000199,2]
[346400763,1734940258895,-407.56317786,0.000199,2]
[346400765,1734940258904,-407.56317786,0.000199,2]
[346400767,1734940258914,-407.56317786,0.000199,2]